Workbook

Sheet Suhrn
G2: Andrejka | H2: Marek
A3: ozn. | B3: teplota [°C] | C3: teplota [K] | D3: Pm | E3: t | F3: dm | I3: d*
A11: 1 | B11: =C11-273.15 -> 21 | C11: 294.15 | E11: 0.5 | H11: 1568.798991
A12: 2 | B12: =C12-273.15 -> 21 | C12: 294.15 | E12: 0.5 | I12: 1062.631908
A13: 3 | B13: 21 | C13: 294.15 | E13: 0.5 | H13: 1470.746504
A14: 4 | B14: -30 | C14: 243.15 | E14: 0.5 | I14: 1354.222929
A15: 5 | B15: -30 | C15: 243.15 | E15: 0.5 | H15: 1724.239454
A16: 6 | B16: -50 | C16: 223.15 | E16: 0.5 | H16: 1887.007962
A17: 7 | B17: -70 | C17: 203.15 | E17: 0.5 | H17: 1845.002518
A18: 8 | B18: -90 | C18: 183.15 | E18: 0.5 | H18: 1830.860008
A19: 9 | B19: -90 | C19: 183.15 | E19: 0.5 | I19: 1341.815852
A20: 10 | B20: -90 | C20: 183.15 | E20: 0.5 | H20: 1912.083458
A21: 11 | B21: -100 | C21: 173.15 | E21: 0.5 | H21: 1914.600406
A22: 12 | B22: -100 | C22: 173.15 | E22: 0.5 | H22: 1945.144443
A23: 13 | B23: -110 | C23: 163.15 | E23: 0.5 | H23: 1326.101303
A24: 14 | B24: -130 | C24: 143.15 | E24: 0.5 | H24: 1509.597027
A25: 15 | B25: -130 | C25: 143.15 | E25: 0.5 | H25: 1353.278219
A26: 16 | B26: -150 | C26: 123.15 | E26: 0.5 | H26: 571.2790998
A27: 17 | B27: -150 | C27: 123.15 | E27: 0.5 | H27: 1058.011587
A28: 18 | B28: -170 | C28: 103.15 | E28: 0.5 | H28: 409.9290355
A29: 19 | B29: -170 | C29: 103.15 | E29: 0.5 | H29: 175.3690735
A30: 20 | B30: -196 | C30: 77.15 | E30: 0.5 | H30: 271.496201
A31: 21 | B31: -196 | C31: 77.15 | E31: 0.5 | H31: 444.4376347
K38: K38
K39: krivka 1: y=a*e^(b*x) | P39: T | Q39: E
J40: exponential | K40: a= | L40: 75.81859 | N40: dolné plató | P40: 50 | Q40: =L$40*EXP(L$41*P40) -> 184.3513621 | S40: diff
K41: b= | L41: 0.01777 | N41: horné plató | P41: 184.8165469 | Q41: =L$40*EXP(L$41*P41) -> 2023.397993 | R41: =L$45*P41^L$46 -> 2023.397994 | S41: =Q41-R41 -> -8.276820154e-07
O42: DBTT | P42: 150.7168368 | Q42: =L$40*EXP(L$41*P42) -> 1103.874677 | R42: =AVERAGE(Q40:Q41) -> 1103.874677 | S42: =Q42-R42 -> -3.772358923e-07
J44: power | K44: krivka 2: y=c*x^d | O44: TT SP | P44: =+P42/0.3773 -> 399.4615341 | Q44: K | S44: =+P42/0.422 -> 357.1489024 | T44: K
K45: c= | L45: 46930.22831 | P45: =+P44-273 -> 126.4615341 | Q45: °C | S45: =+S44-273 -> 84.14890238 | T45: °C
K46: d= | L46: -0.60235
